[Event "Queens Festival Final Team 2022"]
[Site "Tornelo"]
[Date "2022.06.26"]
[Round "5.4"]
[White "Vujcic, Milena"]
[Black "Shohradowa, Lala"]
[Result "0-1"]
[ECO "C02"]
[WhiteElo "1987"]
[BlackElo "1856"]
[Annotator "NA RC"]
[PlyCount "98"]
[EventDate "2022.06.24"]
[EventType "team-tourn"]
[EventCountry "NET"]
[SourceTitle "playchess.com"]
[Source "ChessBase"]
[SourceQuality "1"]
[WhiteTeam "Serbia"]
[BlackTeam "Turkmenistan"]
[WhiteTeamCountry "SRB"]
[BlackTeamCountry "TKM"]
[TimeControl "180+2"]

1. e4 {[%emt 0:00:02]} e6 {[%emt 0:00:04]} 2. d4 {[%emt 0:00:02]} d5 {[%emt 0:00:02]} 3. e5 {[%emt 0:00:01]} c5 {[%emt 0:00:02]} 4. c3 {[%emt 0:00:01]} Qb6 {[%emt 0:00:01]} 5. Nf3 {[%emt 0:00:02]} Nc6 {[%emt 0:00:02]} 6. a3 {[%emt 0:00:01]} Bd7 {[%emt 0:00:03]} 7. b4 {[%emt 0:00:02]} cxd4 {[%emt 0:00:02]} 8. cxd4 {[%emt 0:00:01]} Rc8 {[%emt 0:00:01]} 9. Be3 {[%emt 0:00:02]} Nh6 {[%emt 0:00:02]} 10. Bd3 {[%emt 0:00:01]} Ng4 {[%emt 0:00:02]} 11. O-O {[%emt 0:00:02]} Nxe3 {[%emt 0:00:01]} 12. fxe3 {[%emt 0:00:01]} g6 {[%emt 0:00:02]} 13. Nbd2 {[%emt 0:00:01]} Bh6 {[%emt 0:00:02]} 14. Qe2 {[%emt 0:00:03]} Ne7 {[%emt 0:00:04]} 15. Nb3 {[%emt 0:00:25]} Nf5 {[%emt 0:00:02]} 16. Bxf5 {[%emt 0:00:05]} gxf5 {[%emt 0:00:02]} 17. Rac1 {[%emt 0:00:10]} Ke7 {[%emt 0:00:04]} 18. Qf2 {[%emt 0:00:06]} Bb5 {[%emt 0:00:06]} 19. Qh4+ {[%emt 0:00:14]} Kd7 {[%emt 0:00:07]} 20. Nc5+ {[%emt 0:00:02]} Rxc5 {[%emt 0:00:13]} 21. dxc5 {[%emt 0:00:14]} Bxe3+ {[%emt 0:00:02]} 22. Kh1 {[%emt 0:00:03]} Qa6 {[%emt 0:00:07]} 23. Rfe1 {[%emt 0:00:08]} Bxc1 {[%emt 0:00:03]} 24. Rxc1 {[%emt 0:00:02]} Qxa3 {[%emt 0:00:02]} 25. Re1 {[%emt 0:00:04]} Qc3 {[%emt 0:00:12]} 26. Qf6 {[%emt 0:00:09]} Rf8 {[%emt 0:00:03]} 27. Qg7 {[%emt 0:00:51]} Ke8 {[%emt 0:00:04]} 28. Rg1 {[%emt 0:00:04]} Qxb4 {[%emt 0:00:09]} 29. Ng5 {[%emt 0:00:01]} Qxc5 {[%emt 0:00:06]} 30. Nxh7 {[%emt 0:00:03]} d4 {[%emt 0:00:12]} 31. Nxf8 {[%emt 0:00:21]} Qxf8 {[%emt 0:00:02]} 32. Qg3 {[%emt 0:00:01]} d3 {[%emt 0:00:03]} 33. Qe3 {[%emt 0:00:07]} a6 {[%emt 0:00:05]} 34. Rc1 {[%emt 0:00:03]} Qa3 {[%emt 0:00:08]} 35. h4 {[%emt 0:00:17]} Qb4 {[%emt 0:00:11]} 36. g3 {[%emt 0:00:14]} Qe4+ {[%emt 0:00:02]} 37. Qxe4 {[%emt 0:00:02]} fxe4 {[%emt 0:00:01]} 38. h5 {[%emt 0:00:01]} d2 {[%emt 0:00:03]} 39. Rd1 {[%emt 0:00:03]} e3 {[%emt 0:00:02]} 40. h6 {[%emt 0:00:01]} Bd3 {[%emt 0:00:01]} 41. Kg2 {[%emt 0:00:04]} e2 {[%emt 0:00:02]} 42. Rxd2 {[%emt 0:00:01]} e1=Q {[%emt 0:00:03]} 43. Rxd3 {[%emt 0:00:05]} Qe4+ {[%emt 0:00:01]} 44. Rf3 {[%emt 0:00:04]} Qxe5 {[%emt 0:00:02]} 45. h7 {[%emt 0:00:03]} Kf8 {[%emt 0:00:01]} 46. g4 {[%emt 0:00:02]} Kg7 {[%emt 0:00:02]} 47. g5 {[%emt 0:00:02]} Qxg5+ {[%emt 0:00:02]} 48. Rg3 {[%emt 0:00:01]} Qxg3+ {[%emt 0:00:02]} 49. Kxg3 {[%emt 0:00:01]} Kxh7 {[%emt 0:00:02]} 0-1

[Event "Queens Festival Final Team 2022"]
[Site "Tornelo"]
[Date "2022.06.26"]
[Round "5.4"]
[White "Agajanova, Meryem"]
[Black "Vukosavljevic, Tatjana"]
[Result "1-0"]
[ECO "D27"]
[WhiteElo "1783"]
[BlackElo "1758"]
[Annotator "NA"]
[PlyCount "147"]
[EventDate "2022.06.24"]
[EventType "team-tourn"]
[EventCountry "NET"]
[SourceTitle "playchess.com"]
[Source "ChessBase"]
[SourceQuality "1"]
[WhiteTeam "Turkmenistan"]
[BlackTeam "Serbia"]
[WhiteTeamCountry "TKM"]
[BlackTeamCountry "SRB"]
[TimeControl "180+2"]

1. d4 {[%emt 0:00:02]} d5 {[%emt 0:00:05]} 2. Nf3 {[%emt 0:00:02]} Nf6 {[%emt 0:00:02]} 3. c4 {[%emt 0:00:01]} dxc4 {[%emt 0:00:01]} 4. e3 {[%emt 0:00:07]} e6 {[%emt 0:00:02]} 5. Bxc4 {[%emt 0:00:01]} c5 {[%emt 0:00:02]} 6. O-O {[%emt 0:00:03]} Nbd7 {[%emt 0:00:02]} 7. Nc3 {[%emt 0:00:04]} a6 {[%emt 0:00:01]} 8. a4 {[%emt 0:00:02]} b6 {[%emt 0:00:02]} 9. Qe2 {[%emt 0:00:04]} Bb7 {[%emt 0:00:03]} 10. Rd1 {[%emt 0:00:01]} Qc7 {[%emt 0:00:03]} 11. b3 {[%emt 0:00:08]} Bd6 {[%emt 0:00:03]} 12. h3 {[%emt 0:00:05]} O-O {[%emt 0:00:02]} 13. Bb2 {[%emt 0:00:02]} Rfd8 {[%emt 0:00:10]} 14. Rac1 {[%emt 0:00:03]} Qb8 {[%emt 0:00:04]} 15. dxc5 {[%emt 0:00:15]} Nxc5 {[%emt 0:00:05]} 16. Rd2 {[%emt 0:00:45]} Nfe4 {[%emt 0:00:03]} 17. Nxe4 {[%emt 0:00:03]} Nxe4 {[%emt 0:00:03]} 18. Rdd1 {[%emt 0:00:19]} h6 {[%emt 0:00:14]} 19. Bd3 {[%emt 0:00:04]} Qa7 {[%emt 0:00:12]} 20. Nd4 {[%emt 0:00:09]} Rac8 {[%emt 0:00:13]} 21. Bb1 {[%emt 0:00:19]} Qa8 {[%emt 0:00:02]} 22. Rxc8 {[%emt 0:00:24]} Qxc8 {[%emt 0:00:16]} 23. Qg4 {[%emt 0:00:05]} Nf6 {[%emt 0:00:06]} 24. Qe2 {[%emt 0:00:03]} Qa8 {[%emt 0:00:14]} 25. f3 {[%emt 0:00:06]} Bc5 {[%emt 0:00:09]} 26. Nc2 {[%emt 0:00:09]} Bd5 {[%emt 0:00:08]} 27. b4 {[%emt 0:00:04]} Be7 {[%emt 0:00:04]} 28. e4 {[%emt 0:00:02]} Bb7 {[%emt 0:00:29]} 29. Bc3 {[%emt 0:00:12]} Qc8 {[%emt 0:00:05]} 30. Rxd8+ {[%emt 0:00:01]} Qxd8 {[%emt 0:00:02]} 31. Qd2 {[%emt 0:00:02]} Qxd2 {[%emt 0:00:02]} 32. Bxd2 {[%emt 0:00:01]} Nd7 {[%emt 0:00:02]} 33. Be3 {[%emt 0:00:02]} Kf8 {[%emt 0:00:05]} 34. Kf2 {[%emt 0:00:01]} Bd6 {[%emt 0:00:05]} 35. Ke2 {[%emt 0:00:03]} b5 {[%emt 0:00:05]} 36. axb5 {[%emt 0:00:03]} axb5 {[%emt 0:00:02]} 37. Bd4 {[%emt 0:00:02]} e5 {[%emt 0:00:05]} 38. Be3 {[%emt 0:00:08]} Ke7 {[%emt 0:00:04]} 39. Ba2 {[%emt 0:00:01]} Nb8 {[%emt 0:00:05]} 40. Kd3 {[%emt 0:00:01]} Nc6 {[%emt 0:00:03]} 41. Kc3 {[%emt 0:00:01]} f6 {[%emt 0:00:06]} 42. Bd5 {[%emt 0:00:02]} Kd7 {[%emt 0:00:01]} 43. Bc5 {[%emt 0:00:02]} Bxc5 {[%emt 0:00:03]} 44. bxc5 {[%emt 0:00:01]} Kc7 {[%emt 0:00:11]} 45. Nb4 {[%emt 0:00:01]} Nxb4 {[%emt 0:00:02]} 46. Kxb4 {[%emt 0:00:02]} Ba6 {[%emt 0:00:04]} 47. Ka5 {[%emt 0:00:02]} Bc8 {[%emt 0:00:03]} 48. Kxb5 {[%emt 0:00:01]} Bd7+ {[%emt 0:00:02]} 49. Kb4 {[%emt 0:00:01]} Bc6 {[%emt 0:00:02]} 50. Kc4 {[%emt 0:00:04]} Ba4 {[%emt 0:00:02]} 51. Kc3 {[%emt 0:00:03]} Bd1 {[%emt 0:00:03]} 52. Kd2 {[%emt 0:00:02]} Ba4 {[%emt 0:00:02]} 53. g3 {[%emt 0:00:01]} Bb5 {[%emt 0:00:02]} 54. f4 {[%emt 0:00:03]} Bf1 {[%emt 0:00:04]} 55. h4 {[%emt 0:00:01]} Bb5 {[%emt 0:00:06]} 56. Kc3 {[%emt 0:00:03]} Ba6 {[%emt 0:00:06]} 57. Kd2 {[%emt 0:00:02]} Bb5 {[%emt 0:00:02]} 58. Ke3 {[%emt 0:00:02]} Ba4 {[%emt 0:00:03]} 59. fxe5 {[%emt 0:00:01]} fxe5 {[%emt 0:00:02]} 60. Kf3 {[%emt 0:00:03]} Bd7 {[%emt 0:00:02]} 61. Ke3 {[%emt 0:00:05]} Bc6 {[%emt 0:00:04]} 62. Kd3 {[%emt 0:00:02]} Bb5+ {[%emt 0:00:02]} 63. Kc3 {[%emt 0:00:02]} Ba6 {[%emt 0:00:02]} 64. Bc4 {[%emt 0:00:02]} Bb7 {[%emt 0:00:02]} 65. Bd5 {[%emt 0:00:02]} Ba6 {[%emt 0:00:02]} 66. Kb4 {[%emt 0:00:02]} Be2 {[%emt 0:00:02]} 67. Ba8 {[%emt 0:00:01]} Bd3 {[%emt 0:00:04]} 68. Kc3 {[%emt 0:00:05]} Ba6 {[%emt 0:00:02]} 69. Bd5 {[%emt 0:00:01]} Bf1 {[%emt 0:00:02]} 70. Kd2 {[%emt 0:00:02]} Bb5 {[%emt 0:00:03]} 71. Ke3 {[%emt 0:00:02]} Bc6 {[%emt 0:00:02]} 72. Kf3 {[%emt 0:00:01]} Bb5 {[%emt 0:00:03]} 73. Kg4 {[%emt 0:00:02]} Be8 {[%emt 0:00:02]} 74. Kf5 {[%emt 0:00:01]} 1-0

[Event "Queens Festival Final Team 2022"]
[Site "Tornelo"]
[Date "2022.06.26"]
[Round "5.5"]
[White "Mammadova, Aysel"]
[Black "Mwendwa, Triza"]
[Result "1-0"]
[ECO "C01"]
[WhiteElo "1893"]
[BlackElo "1470"]
[Annotator "NA RC"]
[PlyCount "83"]
[EventDate "2022.06.24"]
[EventType "team-tourn"]
[EventCountry "NET"]
[SourceTitle "playchess.com"]
[Source "ChessBase"]
[SourceQuality "1"]
[WhiteTeam "Azerbaijan"]
[BlackTeam "Kenya"]
[WhiteTeamCountry "AZE"]
[BlackTeamCountry "KEN"]
[TimeControl "180+2"]

1. e4 {[%emt 0:00:02]} e6 {[%emt 0:00:05]} 2. d4 {[%emt 0:00:03]} d5 {[%emt 0:00:02]} 3. exd5 {[%emt 0:00:01]} exd5 {[%emt 0:00:02]} 4. Bd3 {[%emt 0:00:03]} Bd6 {[%emt 0:00:12]} 5. Nf3 {[%emt 0:00:02]} Ne7 {[%emt 0:00:07]} 6. O-O {[%emt 0:00:02]} Bf5 {[%emt 0:00:03]} 7. c3 {[%emt 0:00:05]} Bxd3 {[%emt 0:00:03]} 8. Qxd3 {[%emt 0:00:02]} c6 {[%emt 0:00:02]} 9. Be3 {[%emt 0:00:03]} Nd7 {[%emt 0:00:02]} 10. Nbd2 {[%emt 0:00:03]} Nf6 {[%emt 0:00:04]} 11. c4 {[%emt 0:00:02]} dxc4 {[%emt 0:00:05]} 12. Nxc4 {[%emt 0:00:02]} Bc7 {[%emt 0:00:04]} 13. Bg5 {[%emt 0:00:03]} Nfd5 {[%emt 0:00:12]} 14. Rfe1 {[%emt 0:00:06]} f6 {[%emt 0:00:04]} 15. Bd2 {[%emt 0:00:05]} O-O {[%emt 0:00:09]} 16. Qe4 {[%emt 0:00:02]} Ng6 {[%emt 0:00:07]} 17. Qe6+ {[%emt 0:00:06]} Kh8 {[%emt 0:00:03]} 18. Qg4 {[%emt 0:00:02]} Ndf4 {[%emt 0:00:14]} 19. Bxf4 {[%emt 0:00:04]} Bxf4 {[%emt 0:00:03]} 20. g3 {[%emt 0:00:05]} Bc7 {[%emt 0:00:06]} 21. Rad1 {[%emt 0:00:03]} Qd5 {[%emt 0:00:05]} 22. Ne3 {[%emt 0:00:06]} Qxa2 {[%emt 0:00:05]} 23. Nf5 {[%emt 0:00:02]} Rfe8 {[%emt 0:00:30]} 24. N3h4 {[%emt 0:00:04]} Qf7 {[%emt 0:00:03]} 25. Qh5 {[%emt 0:00:07]} Rad8 {[%emt 0:00:19]} 26. d5 {[%emt 0:00:15]} cxd5 {[%emt 0:00:10]} 27. Rxe8+ {[%emt 0:00:13]} Rxe8 {[%emt 0:00:05]} 28. Nxg6+ {[%emt 0:00:13]} Qxg6 {[%emt 0:00:05]} 29. Qf3 {[%emt 0:00:02]} Re5 {[%emt 0:00:06]} 30. Rxd5 {[%emt 0:00:08]} Re1+ {[%emt 0:00:17]} 31. Kg2 {[%emt 0:00:03]} Qe8 {[%emt 0:00:04]} 32. Ne3 {[%emt 0:00:06]} Bb6 {[%emt 0:00:07]} 33. Nc4 {[%emt 0:00:22]} Bxf2 {[%emt 0:00:06]} 34. Kxf2 {[%emt 0:00:07]} Re7 {[%emt 0:00:05]} 35. Rd2 {[%emt 0:00:06]} h6 {[%emt 0:00:03]} 36. Ne3 {[%emt 0:00:02]} Qb5 {[%emt 0:00:04]} 37. Re2 {[%emt 0:00:03]} Rc7 {[%emt 0:00:03]} 38. Nf5 {[%emt 0:00:05]} Qb6+ {[%emt 0:00:02]} 39. Kg2 {[%emt 0:00:03]} Rc5 {[%emt 0:00:02]} 40. Re8+ {[%emt 0:00:06]} Kh7 {[%emt 0:00:02]} 41. Qd3 {[%emt 0:00:02]} g6 {[%emt 0:00:07]} 42. Qd7# {[%emt 0:00:05]} 1-0

[Event "Queens Festival Final Team 2022"]
[Site "Tornelo"]
[Date "2022.06.26"]
[Round "5.5"]
[White "Shah, Riya"]
[Black "Ismayil, Malak"]
[Result "0-1"]
[ECO "A45"]
[WhiteElo "1559"]
[BlackElo "2001"]
[Annotator "NA RC"]
[PlyCount "102"]
[EventDate "2022.06.24"]
[EventType "team-tourn"]
[EventCountry "NET"]
[SourceTitle "playchess.com"]
[Source "ChessBase"]
[SourceQuality "1"]
[WhiteTeam "Kenya"]
[BlackTeam "Azerbaijan"]
[WhiteTeamCountry "KEN"]
[BlackTeamCountry "AZE"]
[TimeControl "180+2"]

1. d4 {[%emt 0:00:02]} Nf6 {[%emt 0:00:04]} 2. e3 {[%emt 0:00:02]} e6 {[%emt 0:00:01]} 3. Bd3 {[%emt 0:00:01]} Be7 {[%emt 0:00:05]} 4. f4 {[%emt 0:00:02]} O-O {[%emt 0:00:02]} 5. Nf3 {[%emt 0:00:01]} d6 {[%emt 0:00:01]} 6. O-O {[%emt 0:00:01]} Nc6 {[%emt 0:00:01]} 7. b3 {[%emt 0:00:02]} Re8 {[%emt 0:00:05]} 8. Bb2 {[%emt 0:00:02]} Bf8 {[%emt 0:00:01]} 9. c3 {[%emt 0:00:06]} g6 {[%emt 0:00:02]} 10. e4 {[%emt 0:00:01]} Bg7 {[%emt 0:00:02]} 11. e5 {[%emt 0:00:02]} Nd5 {[%emt 0:00:03]} 12. Qd2 {[%emt 0:00:09]} Bh6 {[%emt 0:00:06]} 13. Ng5 {[%emt 0:00:16]} dxe5 {[%emt 0:00:14]} 14. dxe5 {[%emt 0:00:04]} Nxe5 {[%emt 0:00:08]} 15. fxe5 {[%emt 0:00:17]} Qxg5 {[%emt 0:00:06]} 16. Qf2 {[%emt 0:00:08]} Qe3 {[%emt 0:00:07]} 17. Qxe3 {[%emt 0:00:04]} Nxe3 {[%emt 0:00:03]} 18. Rf2 {[%emt 0:00:07]} Ng4 {[%emt 0:00:03]} 19. Re2 {[%emt 0:00:06]} Rd8 {[%emt 0:00:16]} 20. h3 {[%emt 0:00:13]} Nxe5 {[%emt 0:00:06]} 21. Rxe5 {[%emt 0:00:08]} Rxd3 {[%emt 0:00:03]} 22. Na3 {[%emt 0:00:03]} Bd7 {[%emt 0:00:06]} 23. Nc4 {[%emt 0:00:04]} Bc6 {[%emt 0:00:04]} 24. Re2 {[%emt 0:00:05]} Rad8 {[%emt 0:00:11]} 25. Rf1 {[%emt 0:00:05]} Rd1 {[%emt 0:00:07]} 26. Ne5 {[%emt 0:00:06]} Rxf1+ {[%emt 0:00:05]} 27. Kxf1 {[%emt 0:00:01]} Rd1+ {[%emt 0:00:03]} 28. Kf2 {[%emt 0:00:03]} Be8 {[%emt 0:00:08]} 29. Ng4 {[%emt 0:00:16]} Bg7 {[%emt 0:00:04]} 30. c4 {[%emt 0:00:02]} Bxb2 {[%emt 0:00:04]} 31. Rxb2 {[%emt 0:00:02]} Kg7 {[%emt 0:00:03]} 32. Ne3 {[%emt 0:00:05]} Rd8 {[%emt 0:00:03]} 33. Ke2 {[%emt 0:00:05]} f5 {[%emt 0:00:03]} 34. g3 {[%emt 0:00:04]} Bf7 {[%emt 0:00:01]} 35. h4 {[%emt 0:00:01]} e5 {[%emt 0:00:03]} 36. Rd2 {[%emt 0:00:04]} Rxd2+ {[%emt 0:00:02]} 37. Kxd2 {[%emt 0:00:01]} Kf6 {[%emt 0:00:02]} 38. Kd3 {[%emt 0:00:02]} Be6 {[%emt 0:00:04]} 39. a4 {[%emt 0:00:07]} h6 {[%emt 0:00:02]} 40. b4 {[%emt 0:00:01]} g5 {[%emt 0:00:01]} 41. hxg5+ {[%emt 0:00:02]} hxg5 {[%emt 0:00:02]} 42. c5 {[%emt 0:00:01]} f4 {[%emt 0:00:02]} 43. gxf4 {[%emt 0:00:02]} exf4 {[%emt 0:00:02]} 44. Nf1 {[%emt 0:00:02]} Ke5 {[%emt 0:00:04]} 45. b5 {[%emt 0:00:04]} g4 {[%emt 0:00:06]} 46. a5 {[%emt 0:00:02]} b6 {[%emt 0:00:10]} 47. axb6 {[%emt 0:00:15]} axb6 {[%emt 0:00:03]} 48. cxb6 {[%emt 0:00:04]} cxb6 {[%emt 0:00:02]} 49. Nd2 {[%emt 0:00:02]} Bd5 {[%emt 0:00:08]} 50. Nb1 {[%emt 0:00:04]} Be4+ {[%emt 0:00:04]} 51. Kd2 {[%emt 0:00:03]} Bxb1 {[%emt 0:00:02]} 0-1

[Event "Queens Festival Final Team 2022"]
[Site "Tornelo"]
[Date "2022.06.26"]
[Round "5.5"]
[White "Kosgey Sheila Jerop"]
[Black "Khalilova, Khadija"]
[Result "0-1"]
[ECO "A05"]
[WhiteElo "1242"]
[BlackElo "1777"]
[Annotator "NA RC"]
[PlyCount "64"]
[EventDate "2022.06.24"]
[EventType "team-tourn"]
[EventCountry "NET"]
[SourceTitle "playchess.com"]
[Source "ChessBase"]
[SourceQuality "1"]
[WhiteTeam "Kenya"]
[BlackTeam "Azerbaijan"]
[WhiteTeamCountry "KEN"]
[BlackTeamCountry "AZE"]
[TimeControl "180+2"]

1. e4 {[%emt 0:00:02]} c5 {[%emt 0:00:04]} 2. Nf3 {[%emt 0:00:02]} d6 {[%emt 0:00:02]} 3. g3 {[%emt 0:00:02]} Nf6 {[%emt 0:00:03]} 4. d3 {[%emt 0:00:02]} Nc6 {[%emt 0:00:02]} 5. Bg2 {[%emt 0:00:03]} g6 {[%emt 0:00:01]} 6. O-O {[%emt 0:00:02]} Bg7 {[%emt 0:00:02]} 7. Re1 {[%emt 0:00:01]} O-O {[%emt 0:00:02]} 8. c3 {[%emt 0:00:02]} e6 {[%emt 0:00:01]} 9. d4 {[%emt 0:00:01]} cxd4 {[%emt 0:00:08]} 10. cxd4 {[%emt 0:00:02]} d5 {[%emt 0:00:02]} 11. exd5 {[%emt 0:00:14]} Nxd5 {[%emt 0:00:03]} 12. Nc3 {[%emt 0:00:04]} Nb6 {[%emt 0:00:08]} 13. Bg5 {[%emt 0:00:11]} Qd7 {[%emt 0:00:16]} 14. Ne5 {[%emt 0:00:19]} Qe8 {[%emt 0:00:07]} 15. Nxc6 {[%emt 0:00:06]} bxc6 {[%emt 0:00:03]} 16. d5 {[%emt 0:00:26]} cxd5 {[%emt 0:00:17]} 17. Nxd5 {[%emt 0:00:06]} Nxd5 {[%emt 0:00:05]} 18. Bxd5 {[%emt 0:00:03]} Rb8 {[%emt 0:00:02]} 19. Bf4 {[%emt 0:00:09]} Rb6 {[%emt 0:00:06]} 20. Rb1 {[%emt 0:00:08]} Qb5 {[%emt 0:00:06]} 21. Bb3 {[%emt 0:00:05]} Bb7 {[%emt 0:00:09]} 22. Be3 {[%emt 0:00:03]} Qc6 {[%emt 0:00:10]} 23. Kf1 {[%emt 0:00:29]} Qg2+ {[%emt 0:00:07]} 24. Ke2 {[%emt 0:00:02]} Bf3+ {[%emt 0:00:04]} 25. Kd2 {[%emt 0:00:04]} Rd6+ {[%emt 0:00:03]} 26. Kc2 {[%emt 0:00:10]} Rc8+ {[%emt 0:00:03]} 27. Bc4 {[%emt 0:00:17]} Bxd1+ {[%emt 0:00:03]} 28. Rexd1 {[%emt 0:00:04]} Rxd1 {[%emt 0:00:02]} 29. Rxd1 {[%emt 0:00:03]} Rxc4+ {[%emt 0:00:02]} 30. Kb3 {[%emt 0:00:02]} Qc6 {[%emt 0:00:03]} 31. Rd8+ {[%emt 0:00:05]} Bf8 {[%emt 0:00:01]} 32. Bh6 {[%emt 0:00:03]} Qb5# {[%emt 0:00:03]} 0-1

[Event "Queens Festival Final Team 2022"]
[Site "Tornelo"]
[Date "2022.06.26"]
[Round "5.5"]
[White "Bakhshizada, Asnad"]
[Black "Muthoni, Vivian"]
[Result "1-0"]
[ECO "E91"]
[WhiteElo "1052"]
[BlackElo "1128"]
[Annotator "NA RC"]
[PlyCount "69"]
[EventDate "2022.06.24"]
[EventType "team-tourn"]
[EventCountry "NET"]
[SourceTitle "playchess.com"]
[Source "ChessBase"]
[SourceQuality "1"]
[WhiteTeam "Azerbaijan"]
[BlackTeam "Kenya"]
[WhiteTeamCountry "AZE"]
[BlackTeamCountry "KEN"]
[TimeControl "180+2"]

1. d4 {[%emt 0:00:02]} Nf6 {[%emt 0:00:07]} 2. c4 {[%emt 0:00:02]} g6 {[%emt 0:00:03]} 3. Nc3 {[%emt 0:00:02]} Bg7 {[%emt 0:00:09]} 4. e4 {[%emt 0:00:01]} d6 {[%emt 0:00:02]} 5. Nf3 {[%emt 0:00:03]} O-O {[%emt 0:00:05]} 6. Be2 {[%emt 0:00:03]} Bg4 {[%emt 0:00:09]} 7. O-O {[%emt 0:00:03]} Nbd7 {[%emt 0:00:04]} 8. Be3 {[%emt 0:00:07]} e5 {[%emt 0:00:05]} 9. d5 {[%emt 0:00:04]} c6 {[%emt 0:00:15]} 10. dxc6 {[%emt 0:00:04]} bxc6 {[%emt 0:00:12]} 11. Qxd6 {[%emt 0:00:02]} Qc8 {[%emt 0:00:21]} 12. Nxe5 {[%emt 0:00:36]} Bxe2 {[%emt 0:00:12]} 13. Nxe2 {[%emt 0:00:04]} Nxe5 {[%emt 0:00:11]} 14. Qxe5 {[%emt 0:00:03]} Ng4 {[%emt 0:00:14]} 15. Qf4 {[%emt 0:00:05]} Be5 {[%emt 0:00:11]} 16. Qf3 {[%emt 0:00:05]} Nxh2 {[%emt 0:00:13]} 17. Qh3 {[%emt 0:00:06]} Qxh3 {[%emt 0:00:09]} 18. gxh3 {[%emt 0:00:02]} Nxf1 {[%emt 0:00:03]} 19. Rxf1 {[%emt 0:00:02]} f5 {[%emt 0:00:03]} 20. Bh6 {[%emt 0:00:03]} Rf7 {[%emt 0:00:04]} 21. exf5 {[%emt 0:00:02]} Rxf5 {[%emt 0:00:03]} 22. b3 {[%emt 0:00:03]} Rh5 {[%emt 0:00:03]} 23. Be3 {[%emt 0:00:03]} Rxh3 {[%emt 0:00:04]} 24. Kg2 {[%emt 0:00:06]} Rh2+ {[%emt 0:00:05]} 25. Kf3 {[%emt 0:00:02]} Rf8+ {[%emt 0:00:05]} 26. Ke4 {[%emt 0:00:02]} Bc7 {[%emt 0:00:08]} 27. Kd3 {[%emt 0:00:02]} Rh4 {[%emt 0:00:05]} 28. Kc2 {[%emt 0:00:05]} Rh3 {[%emt 0:00:02]} 29. Bc5 {[%emt 0:00:03]} Rff3 {[%emt 0:00:09]} 30. Bd4 {[%emt 0:00:20]} Rd3 {[%emt 0:00:08]} 31. Be3 {[%emt 0:00:14]} Rf3 {[%emt 0:00:06]} 32. Kxd3 {[%emt 0:00:03]} Bb6 {[%emt 0:00:06]} 33. Nd4 {[%emt 0:00:05]} Bxd4 {[%emt 0:00:04]} 34. Kxd4 {[%emt 0:00:02]} h5 {[%emt 0:00:06]} 35. Rg1 {[%emt 0:00:04]} 1-0

[Event "Queens Festival Final Team 2022"]
[Site "Tornelo"]
[Date "2022.06.26"]
[Round "5.6"]
[White "Francis, Onkemetse"]
[Black "Nkhoma, Desiderata"]
[Result "1-0"]
[ECO "B23"]
[WhiteElo "1777"]
[BlackElo "1465"]
[Annotator "NA RC"]
[PlyCount "57"]
[EventDate "2022.06.24"]
[EventType "team-tourn"]
[EventCountry "NET"]
[SourceTitle "playchess.com"]
[Source "ChessBase"]
[SourceQuality "1"]
[WhiteTeam "Botswana"]
[BlackTeam "MAW"]
[WhiteTeamCountry "BOT"]
[TimeControl "180+2"]

1. e4 {[%emt 0:00:02]} c5 {[%emt 0:00:06]} 2. Nc3 {[%emt 0:00:04]} d6 {[%emt 0:00:05]} 3. f4 {[%emt 0:00:02]} Nf6 {[%emt 0:00:03]} 4. Nf3 {[%emt 0:00:01]} g6 {[%emt 0:00:03]} 5. Bc4 {[%emt 0:00:02]} Bg7 {[%emt 0:00:04]} 6. d3 {[%emt 0:00:02]} O-O {[%emt 0:00:02]} 7. O-O {[%emt 0:00:02]} Nc6 {[%emt 0:00:03]} 8. Qe1 {[%emt 0:00:04]} e5 {[%emt 0:00:09]} 9. Qh4 {[%emt 0:00:20]} Be6 {[%emt 0:00:42]} 10. fxe5 {[%emt 0:00:13]} dxe5 {[%emt 0:00:04]} 11. Bg5 {[%emt 0:00:04]} Bxc4 {[%emt 0:00:07]} 12. dxc4 {[%emt 0:00:03]} Rc8 {[%emt 0:00:11]} 13. Nd5 {[%emt 0:00:05]} h6 {[%emt 0:00:39]} 14. Bxf6 {[%emt 0:00:07]} Qd7 {[%emt 0:00:08]} 15. Bxg7 {[%emt 0:00:09]} Kxg7 {[%emt 0:00:03]} 16. Rad1 {[%emt 0:00:03]} Qe6 {[%emt 0:00:06]} 17. c3 {[%emt 0:00:12]} b6 {[%emt 0:00:09]} 18. Rf2 {[%emt 0:00:07]} f6 {[%emt 0:00:04]} 19. Rdf1 {[%emt 0:00:03]} g5 {[%emt 0:00:03]} 20. Qg3 {[%emt 0:00:07]} Na5 {[%emt 0:00:06]} 21. Nd2 {[%emt 0:00:04]} Nc6 {[%emt 0:00:05]} 22. Rxf6 {[%emt 0:00:03]} Rxf6 {[%emt 0:00:05]} 23. Rxf6 {[%emt 0:00:02]} Qe8 {[%emt 0:00:08]} 24. Qf2 {[%emt 0:00:04]} Ne7 {[%emt 0:00:12]} 25. Nf1 {[%emt 0:00:11]} Ng6 {[%emt 0:00:04]} 26. g3 {[%emt 0:00:05]} Rd8 {[%emt 0:00:16]} 27. Nfe3 {[%emt 0:00:03]} Rc8 {[%emt 0:00:04]} 28. Nf5+ {[%emt 0:00:11]} Kh7 {[%emt 0:00:04]} 29. Nfe3 {[%emt 0:00:03]} 1-0

[Event "Queens Festival Final Team 2022"]
[Site "Tornelo"]
[Date "2022.06.26"]
[Round "5.6"]
[White "Marape, Naledi"]
[Black "Shriyan santosh Priyasha"]
[Result "0-1"]
[ECO "A05"]
[WhiteElo "1707"]
[BlackElo "1597"]
[Annotator "NA RC"]
[PlyCount "72"]
[EventDate "2022.06.24"]
[EventType "team-tourn"]
[EventCountry "NET"]
[SourceTitle "playchess.com"]
[Source "ChessBase"]
[SourceQuality "1"]
[WhiteTeam "Botswana"]
[BlackTeam "MAW"]
[WhiteTeamCountry "BOT"]
[TimeControl "180+2"]

1. e4 {[%emt 0:00:02]} g6 {[%emt 0:00:04]} 2. d3 {[%emt 0:00:04]} Bg7 {[%emt 0:00:01]} 3. Nd2 {[%emt 0:00:03]} d6 {[%emt 0:00:02]} 4. g3 {[%emt 0:00:02]} c5 {[%emt 0:00:01]} 5. Bg2 {[%emt 0:00:02]} Nf6 {[%emt 0:00:02]} 6. Ngf3 {[%emt 0:00:02]} O-O {[%emt 0:00:02]} 7. O-O {[%emt 0:00:01]} Nc6 {[%emt 0:00:01]} 8. c3 {[%emt 0:00:02]} e5 {[%emt 0:00:12]} 9. Re1 {[%emt 0:00:09]} a6 {[%emt 0:00:03]} 10. h4 {[%emt 0:00:04]} Be6 {[%emt 0:00:06]} 11. Nf1 {[%emt 0:00:06]} Re8 {[%emt 0:00:04]} 12. Bg5 {[%emt 0:00:03]} h6 {[%emt 0:00:05]} 13. Be3 {[%emt 0:00:07]} Ng4 {[%emt 0:00:06]} 14. Bd2 {[%emt 0:00:04]} d5 {[%emt 0:00:10]} 15. Ne3 {[%emt 0:00:05]} Nxe3 {[%emt 0:00:06]} 16. Bxe3 {[%emt 0:00:05]} d4 {[%emt 0:00:05]} 17. Bd2 {[%emt 0:00:04]} Rc8 {[%emt 0:00:09]} 18. a3 {[%emt 0:00:07]} b5 {[%emt 0:00:06]} 19. h5 {[%emt 0:00:06]} g5 {[%emt 0:00:07]} 20. Nh2 {[%emt 0:00:06]} Na5 {[%emt 0:00:10]} 21. Rf1 {[%emt 0:00:12]} Nb3 {[%emt 0:00:06]} 22. Rb1 {[%emt 0:00:04]} Nxd2 {[%emt 0:00:10]} 23. Qxd2 {[%emt 0:00:04]} c4 {[%emt 0:00:01]} 24. dxc4 {[%emt 0:00:07]} Bxc4 {[%emt 0:00:03]} 25. Rfd1 {[%emt 0:00:08]} Bb3 {[%emt 0:00:10]} 26. Rdc1 {[%emt 0:00:05]} Qe7 {[%emt 0:00:15]} 27. f4 {[%emt 0:00:16]} dxc3 {[%emt 0:00:06]} 28. Rxc3 {[%emt 0:00:05]} Rxc3 {[%emt 0:00:10]} 29. bxc3 {[%emt 0:00:06]} Bc4 {[%emt 0:00:08]} 30. fxg5 {[%emt 0:00:04]} hxg5 {[%emt 0:00:02]} 31. g4 {[%emt 0:00:05]} Rd8 {[%emt 0:00:04]} 32. Qb2 {[%emt 0:00:08]} Rd7 {[%emt 0:00:07]} 33. Bf3 {[%emt 0:00:07]} Qd8 {[%emt 0:00:03]} 34. Nf1 {[%emt 0:00:09]} Qf6 {[%emt 0:00:17]} 35. Kg2 {[%emt 0:00:07]} Qf4 {[%emt 0:00:05]} 36. Ne3 {[%emt 0:00:04]} Qxe3 {[%emt 0:00:04]} 0-1